Cogmind - Beta 16.1 @@@ ROGUE MODE // 2026.03.08 @ 14:46:33 Player: CometVoid Result: Self-destructed Performance ------------- Evolutions (1) 500 Regions Visited (3) 600 Robots Destroyed (14) 70 Value Destroyed (270) 270 Prototype IDs (1) 20 Alien Tech Used (0) 0 Bonus (0) 0 TOTAL SCORE: 1460 Bonus ------- None Cogmind --------- Core Integrity 229/400 Matter 227/300 Energy 76/125 System Corruption 0% Temperature Cool (64) Movement Rolling (200) Ox8 Location -9/Materials Parts ------- > --- POWER (1) -------- Light Ion Engine > --- PROPULSION (3) --- Wheel > --- UTILITY (3) ------ Huge Storage Unit > --- WEAPON (2) ------- Mining Laser > --- INVENTORY (25) --- Light Ion Engine Light Ion Engine Light Ion Engine Light Ion Engine Wheel Wheel Flight Unit Flight Unit Small Storage Unit High-capacity Storage Unit Signal Interpreter Terrain Scanner Improved Terrain Scanner Terrain Scan Processor Terrain Scan Processor Seismic Detector Tractor Beam Tractor Beam Peak State ------------ > --- POWER ------------ Ion Engine > --- PROPULSION ------- Wheel Wheel Wheel > --- UTILITY ---------- Huge Storage Unit Structural Scanner Experimental Sensor Array > --- WEAPON ----------- Assault Rifle Mining Laser > --- INVENTORY -------- Light Ion Engine Light Ion Engine Light Ion Engine Light Ion Engine Light Ion Engine Wheel Wheel Wheel Flight Unit Flight Unit Small Storage Unit High-capacity Storage Unit Signal Interpreter Terrain Scanner Improved Terrain Scanner Terrain Scan Processor Terrain Scan Processor Seismic Detector Tractor Beam Tractor Beam Mining Laser [Rating: 19] Favorites ----------- Power Light Ion Engine Engine Light Ion Engine Propulsion Wheel Wheel Wheel Utility High-capacity Storage Unit Device Experimental Sensor Array Storage High-capacity Storage Unit Weapon Assault Rifle Energy Gun Spread Laser Ballistic Gun Assault Rifle Special Weapon Mining Laser Build | -11 -10 -10 -9 ------- Run | Yrd Mat Min Mat Slots Evolved 2 | . . . 2 Power . | . . . . Propulsion 1 | . . . 1 Utility 1 | . . . 1 Weapon . | . . . . Parts Attached 31 | 9 2 12 8 Power 4 | 1 . 2 1 Engine 4 | 1 . 2 1 Core . | . . . . Reactor . | . . . . Propulsion 11 | 4 . 5 2 Treads . | . . . . Leg . | . . . . Wheel 11 | 4 . 5 2 Hover . | . . . . Flight . | . . . . Utility 8 | 2 1 4 1 Device 5 | 1 . 3 1 Storage 3 | 1 1 1 . Processor . | . . . . Hackware . | . . . . Protection . | . . . . Artifact . | . . . . Weapon 8 | 2 1 1 4 Energy Gun 1 | . . . 1 Energy Cannon . | . . . . Ballistic Gun 4 | 2 . 1 1 Ballistic Cannon . | . . . . Launcher . | . . . . Special Weapon 3 | . 1 . 2 Impact Weapon . | . . . . Slashing Weapon . | . . . . Piercing Weapon . | . . . . Special Melee Weapon . | . . . . Unidentified Prototypes 1 | . . 1 . Parts Lost 22 | . . 11 11 Power 4 | . . 2 2 Propulsion 7 | . . 4 3 Utility 4 | . . 2 2 Weapon 7 | . . 3 4 Highest Loss Streak 9 | . . 5 9 To Critical Strikes . | . . . . Average Backups 15 | 4 9 17 20 Power 2 | 1 1 2 4 Propulsion 3 | 1 2 3 4 Utility 7 | . 4 8 10 Weapon 2 | 1 2 3 1 Tool/Special . | . . . . Unused Backups 23 | . 2 6 15 Power 5 | . 1 . 4 Propulsion 5 | . . 2 3 Utility 12 | . 1 3 8 Weapon 1 | . . 1 . Tool/Special . | . . . . Average Slot Usage (%) 93 | . 100 96 77 Engine 12 | . 14 13 6 Wheel 27 | . 28 27 26 Device 13 | . 14 12 17 Storage 13 | . 14 14 11 Ballistic Gun 21 | . 14 26 6 Special Weapon 3 | . 13 1 6 Peak Build Rating 19 | 8 8 17 19 Average Rating 11 | 6 7 11 17 On Entrance 8 | . 8 8 16 Avg Prop Armor Cover (%) . | . . . . Naked Turns . | . . . . Heaviest Build 90 | 13 47 90 90 Greatest Support 32 | 32 20 20 30 Greatest Overweight (x) 4 | . 2 4 4 Average Overweight (x) 2 | . 1 2 2 Largest Inventory Capacity 25 | 8 20 25 25 Average Capacity 19 | 7 17 21 25 Most Carried 25 | 8 16 25 23 Average Carried 15 | 4 10 17 20 Final Capacity 25 | 8 20 25 25 Final Carried 24 | 8 16 24 18 Class Distribution -------------------- 85% | Mutant 14% | Scavenger-Mutant Dominant Class ---------------- Scavenger-Mutant | -10/Materials Mutant | -10/Mines Mutant | -9/Materials Resources | -11 -10 -10 -9 ----------- Run | Yrd Mat Min Mat Matter Collected 761 | 355 . 406 . Remotely . | . . . . Salvage Created 588 | 175 . 204 209 Parts 26 | 12 . 5 9 Haulers Intercepted . | . . . . Recyclers Shooed . | . . . . Parts Field Recycled . | . . . . Retrieved Matter . | . . . . Parts Self-Destructed . | . . . . Prevented . | . . . . Parts Restored . | . . . . Kills | -11 -10 -10 -9 ------- Run | Yrd Mat Min Mat Combat Hostiles Destroyed 13 | . . 10 3 Guns 13 | . . 10 3 Classes Destroyed 7 | 3 . 3 1 Worker 2 | 2 . . . Tunneler 3 | 3 . . . Recycler 2 | 1 . . 1 Swarmer 2 | . . 2 . Grunt 3 | . . 2 1 Sentry 2 | . . . 2 Assembled 6 | . . 6 . Best Kill Streak 4 | 3 . 2 4 Combat Bots Only 3 | . . 2 3 Max Kills in Single Turn 2 | 1 . 1 2 Gunslinging . | . . . . Exploded . | . . . . Melee . | . . . . Uniques/NPCs Destroyed . | . . . . Combat | -11 -10 -10 -9 -------- Run | Yrd Mat Min Mat Hostile Shots Fired 176 | . . 88 88 Missed 54 | . . 25 29 Hits 122 | . . 63 59 Melee 4 | . . 4 . Projectile 118 | . . 59 59 AOE 4 | . . 4 . Critical Strikes 3 | . . . 3 Damage Taken 1772 | . . 964 808 Core 361 | . . 190 171 Absorbed by Shields . | . . . . Core Remaining (%) 62 | 100 . 24 . Volleys Fired 68 | 13 2 35 18 Largest 2 | 2 1 2 2 Hottest 123 | 40 100 40 123 Shots Fired 126 | 26 2 71 27 Gun 120 | 26 . 71 23 Cannon . | . . . . Launcher . | . . . . Special 6 | . 2 . 4 Kinetic 113 | 26 . 71 16 Thermal 13 | . 2 . 11 Explosive . | . . . . Electromagnetic . | . . . . Robot Hit Streak 8 | 6 . 4 8 Robot Miss Streak 4 | 2 . 4 4 Penetration Max . | . . . . Secondary Targets 2 | . . 1 1 Max Gunslinging Chain 1 | . . 1 1 Shots Hit Robots 79 | 16 . 41 22 Core Hits 36 | 7 . 17 12 Critical Kills . | . . . . Critical Parts Destroyed 1 | . . 1 . Critical Strikes 1 | . . 1 . Destroy 1 | . . 1 . Melee Attacks . | . . . . Impact . | . . . . Slashing . | . . . . Piercing . | . . . . Sneak Attacks . | . . . . Combat Hostiles . | . . . . Follow-up Attacks . | . . . . Damage Inflicted 1024 | 200 . 507 317 Guns 1000 | 200 . 507 293 Cannons . | . . . . Explosions . | . . . . Melee . | . . . . Ramming . | . . . . Kinetic 912 | 200 . 507 205 Thermal 112 | . . . 112 Explosive . | . . . . Electromagnetic . | . . . . Impact . | . . . . Slashing . | . . . . Piercing . | . . . . Highest Corruption 9 | . . 9 . Average Corruption 7 | . . 7 . Corruption Purged . | . . . . Corruption Blocked . | . . . . Effects 19 | . . 19 . Message Errors 4 | . . 4 . Matter Fused 8 | . . 8 . Energy Discharges 2 | . . 2 . Data Loss (minor) 1 | . . 1 . Data Loss (major) 3 | . . 3 . Misfires 1 | . . 1 . Overload Shots . | . . . . Overflow Damage . | . . . . Projectiles . | . . . . Explosions . | . . . . Melee . | . . . . Knockbacks . | . . . . Impact . | . . . . Kinetic . | . . . . Secondary . | . . . . Self-Inflicted Damage . | . . . . Shots . | . . . . Rammed . | . . . . Targets Rammed . | . . . . Kicked . | . . . . Crushed . | . . . . Highest Temperature 65 | . 40 8 65 Average Temperature 21 | . 22 2 24 Received Heat Transfer 546 | . . 189 357 Siege Activations . | . . . . Martial Activations . | . . . . Shielding Activations . | . . . . Robots Disrupted . | . . . . Combat Hostiles . | . . . . Robots Corrupted . | . . . . Combat Hostiles . | . . . . Parts Fried . | . . . . Impact Corruptions . | . . . . Robots Melted . | . . . . Combat Hostiles . | . . . . Parts Melted . | . . . . Heat Transferred 165 | . . . 165 Parts Sabotaged . | . . . . Parts Stolen . | . . . . Parts Stripped . | . . . . Power Chain Reactions . | . . . . Alert | -11 -10 -10 -9 ------- Run | Yrd Mat Min Mat Maximum Alert Level . | . . . . Low Security (%) 100 | 100 100 100 100 Level 1 . | . . . . Level 2 . | . . . . Level 3 . | . . . . Level 4 . | . . . . Level 5 . | . . . . High Security . | . . . . Max Security . | . . . . Peak Influence 78 | 10 15 78 66 Initial . | . . . . Average 11 | 2 1 16 10 Influence Increases 273 | 30 15 135 93 Destroy 0b10 Robot/C 140 | . . 80 60 Destroy 0b10 Robot/NC 35 | 30 . . 5 Destroy Leader 40 | . . 20 20 Successful Hack 11 | . . 5 6 Disable Machine 15 | . 15 . . Destroy Structure 2 | . . . 2 Lose Combat Pursuer 30 | . . 30 . Influence Decreases 256 | 30 15 135 76 Time Decay 180 | 30 15 115 20 Lost Part 76 | . . 20 56 Squads Dispatched . | . . . . Investigation . | . . . . Extermination . | . . . . Reinforcement . | . . . . Assault . | . . . . Garrison . | . . . . Intercept . | . . . . Searches Triggered . | . . . . Construction Impeded . | . . . . Haulers Reinforced . | . . . . Active Scanning Responses . | . . . . Cargo Convoy Interrupts . | . . . . Stealth | -11 -10 -10 -9 --------- Run | Yrd Mat Min Mat Distress Signals 1 | . 1 . . Communications Jammed . | . . . . Distress Signals . | . . . . Times Spotted 35 | . 1 26 8 Peak Tracking Total 9 | . 1 9 6 Tactical Retreats 4 | . . 4 . Traps | -11 -10 -10 -9 ------- Run | Yrd Mat Min Mat Traps Triggered . | . . . . Indirectly . | . . . . Trap Hack Attempts . | . . . . Triggered . | . . . . Disarmed . | . . . . Reprogrammed . | . . . . Reused . | . . . . Traps Extracted . | . . . . Installed . | . . . . Triggered . | . . . . Machines | -11 -10 -10 -9 ---------- Run | Yrd Mat Min Mat Machines Disabled 1 | . 1 . . Max in Single Turn 1 | . 1 . . Machines Repaired . | . . . . Machines Dismantled . | . . . . Machines Sabotaged . | . . . . Overloaded Fab Kills . | . . . . Hacking | -11 -10 -10 -9 --------- Run | Yrd Mat Min Mat Machines Accessed 3 | . 1 1 1 Terminals 2 | . 1 1 . Fabricators . | . . . . Repair Stations 1 | . . . 1 Recycling Units . | . . . . Scanalyzers . | . . . . Garrison Access . | . . . . Total Hacks 13 | . 4 5 4 Successful 2 | . . 1 1 Failed 11 | . 4 4 3 Catastrophic 3 | . . 2 1 Database Lockouts . | . . . . Manual 9 | . 4 5 . Terminals 9 | . 4 5 . Fabricators . | . . . . Repair Stations 4 | . . . 4 Recycling Units . | . . . . Scanalyzers . | . . . . Garrison Access . | . . . . Terminal Hacks 1 | . . 1 . Emergency Access Points 1 | . . 1 . Fabricator Hacks . | . . . . Repair Station Hacks 1 | . . . 1 Refit 1 | . . . 1 Recycling Unit Hacks . | . . . . Scanalyzer . | . . . . Garrison Access Hacks . | . . . . Unauthorized Hacks . | . . . . Terminals . | . . . . Fabricators . | . . . . Repair Stations . | . . . . Recycling Units . | . . . . Scanalyzers . | . . . . Garrison Access . | . . . . Data Cores Recovered . | . . . . Used . | . . . . Hacking Detections 3 | . 1 1 1 Full Trace Events 3 | . 1 1 1 Feedback Events . | . . . . Feedback Blocked . | . . . . Robot Schematics Acquired . | . . . . Robots Built . | . . . . Authchips . | . . . . Time . | . . . . Total Robot Build Rating . | . . . . Part Schematics Acquired . | . . . . Parts Built . | . . . . Authchips . | . . . . Time . | . . . . Total Part Build Rating . | . . . . Part Studies Acquired . | . . . . Parts Repaired . | . . . . Time . | . . . . Parts Recycled . | . . . . Recycled Matter . | . . . . Retrieved Matter . | . . . . Retrieved Components . | . . . . Parts Scanalyzed . | . . . . Part Schematics Acquired . | . . . . Parts Damaged . | . . . . Bothacking | -11 -10 -10 -9 ------------ Run | Yrd Mat Min Mat Used RIF Installer . | . . . . Robots Hacked . | . . . . Non-combat . | . . . . Combat . | . . . . Robot Hacks Applied . | . . . . Relay Couplers Released . | . . . . Fabnet Peak Effective % . | . . . . Robots Rewired . | . . . . Allies Hacked . | . . . . Hacks Repelled . | . . . . Allies | -11 -10 -10 -9 -------- Run | Yrd Mat Min Mat Total Allies . | . . . . Largest Group . | . . . . Highest-Rated Group . | . . . . Highest-Rated Ally . | . . . . Total Orders . | . . . . Ally Attacks . | . . . . Total Damage . | . . . . Kills . | . . . . Allies Corrupted . | . . . . Allies Melted . | . . . . Intel | -11 -10 -10 -9 ------- Run | Yrd Mat Min Mat Active Infowar (turns) 1155 | 92 154 721 188 Sensors 629 | . . 441 188 Terrain 126 | . . 126 . Structural 112 | . . . 112 Seismic 400 | 92 154 154 . Robot Analysis Total . | . . . . Derelict Logs Recovered 1 | . . 1 . Drone Launches . | . . . . Drone Recoveries . | . . . . Exploration | -11 -10 -10 -9 ------------- Run | Yrd Mat Min Mat Turns Passed 1333 | 180 154 808 191 Spaces Moved 909 | 129 129 540 111 Core 5 | 5 . . . Treads . | . . . . Legs . | . . . . Wheels 904 | 124 129 540 111 Hover . | . . . . Flight . | . . . . Fastest Speed 50 | 50 80 110 110 Average Speed 111 | 92 102 118 113 Slowest Speed 140 | 100 110 140 140 Overloaded Moves . | . . . . Propulsion Burnouts . | . . . . Robots Hopped . | . . . . Potential Cave-ins 3 | . . 3 . Cave-ins Triggered . | . . . . Exploration Rate (%) 33 | 5 27 88 15 Regions Visited 3 Branch Regions 1 Pre-discovered Areas 1 | . . 1 . Known Exits Taken . | . . . . Unknown Exits Taken 3 | 1 1 1 . Scrap Searched 3 | . . 3 . Spaces Dug . | . . . . Terrain Destroyed 1 | . . . 1 Melee . | . . . . Projectile 1 | . . . 1 AOE . | . . . . Terrain Rammed . | . . . . Walls Destroyed . | . . . . Machines Disabled . | . . . . Actions | -11 -10 -10 -9 --------- Run | Yrd Mat Min Mat Total 1091 | 162 145 644 140 Wait 24 | . . 21 3 Move 906 | 128 128 539 111 Hop . | . . . . Pick Up 46 | 10 10 26 . Fast Attach 7 | 5 . . 2 Attach 18 | 2 . 10 6 Detach . | . . . . Swap 7 | 2 2 3 . Drop 15 | 2 3 10 . Fire 68 | 13 2 35 18 Melee . | . . . . Ram . | . . . . Kick . | . . . . Crush . | . . . . Escape Stasis . | . . . . Rewire . | . . . . Trap . | . . . . Miscellaneous . | . . . . Route ------- -11/Scrapyard -10/Materials -10/Mines -9/Materials History --------- Turn | Location | Event 8 | -11/Scrapyard | Discovered new exit (range 16) 181 | -11/Scrapyard | Entered Materials 182 | -10/Materials | Met a group of wandering Federalists 269 | -10/Materials | Discovered new exit (range 8) 335 | -10/Materials | Entered Mines 361 | -10/Mines | Assembled infested the area 366 | -10/Mines | Assisted by a Guerilla fighting off Assembled 583 | -10/Mines | Lost 5 parts (1p2n1u1w) 616 | -10/Mines | Found DCF Scrap (15 items) 690 | -10/Mines | Build established: Mutant 732 | -10/Mines | Core integrity fell below 50% 793 | -10/Mines | Found a damaged Exp. Sensor Array with a note attached 795 | -10/Mines | Found Prototype Device 795 | -10/Mines | Identified Exp. Sensor Array 925 | -10/Mines | Learned location of Storage (-8) 1134 | -10/Mines | Discovered new exit (range 7) 1143 | -10/Mines | Entered Materials 1143 | -9/Materials | Evolved 2 slots: Propulsion x1, Utility x1 1334 | -9/Materials | Self-destructed Last Messages --------------- 01282_ Acquired Hvy. Assault Rifle. 01289_ G-34 Mercenary destroyed. 01292_ R-06 Scavenger collects Aluminum Leg. 01295_ R-06 Scavenger destroyed. 01295_ Y-45 Defender destroyed. 01298_ Wheel destroyed. 01298_ K-01 Serf collects debris. 01301_ Wheel destroyed. 01301_ Y-45 Defender destroyed. 01301_ Switching to secondary target: Y-45 Defender. 01302_ K-01 Serf collects debris. 01304_ Critical hit (Burn: +37). 01305_ K-01 Serf collects debris. 01322_ M-13 Machinist repairs Y-45 Defender. 01323_ Spread Laser destroyed. 01329_ R-06 Scavenger collects Beam Rifle. 01331_ Exp. Sensor Array destroyed. 01332_ R-06 Scavenger collects Lgt. Treads. 01332_ Critical hit (Burn: +37). 01334_ Hvy. Assault Rifle destroyed. Map ----- +----------------------------------------------------+ | ?????????????????????????????????????????????????? | | ?????????????????????????????????????????????????? | | ?????????????????????????????????????????????????? | | ?????????????????????????????????????????????????? | | ?????????????????????????????????????????????????? | | ?????????????????????????????????????????????????? | | ?????????????????????????????????????????????????? | | ??????????????????????????????????????????????## ? | | ??????????????????????????????????????????????## | | ?????????????????????????????????????????????? | | ??????????????????????????????????????????????## | | ??????????????????????????????????????????????## | | ??????????????????????????????????????????###### | | ??????????????????????????????????????????###### | | ??????????????????????????????????????????"" # | | ???????????????????????????########### ?????" # | | ??????????????????????################ ?????? # | | ??????????????????????# ## # ??????? / | | ??????????????????????# ## """ ! # ??????? # | | ??????????????????????# ## """ # ??????? # | | ??????????????????????# ## """ ! # ??????? # | | ??????????????????????# ## # # | | ??????????????????????# [[## """ ########### | | ???????????????#??????# ##! R" # ! + | | ???????????????# # !! ## """ # #### | | ????????????????###+##YY%@ ## # """ #### | | ????????????????# ##Y#########+### """ #### | | ?????????? ### k % # """ #### | | ????????? " r + #### | | ?????????? ### # """ ####/ | | ????????????????# ##+############# """ # | | ????????????????####### ############ """ # ?"" | | ??????????????????????# #?????????## # "" | | ??????????????????????# #?????????## # "" | | ??????????????????????# #?????????########## | | ??????????????????????# #?????????########## "" | | ??????????????????????# #?????????????????## "" | | ??????????????????????# #?????????????????## ??? | | ??????????????????????#####?????????????????## ??? | | ????????????????????????????????????????????###??? | | ?????????????????????????????????????????????????? | | ?????????????????????????????????????????????????? | | ?????????????????????????????????????????????????? | | ?????????????????????????????????????????????????? | | ?????????????????????????????????????????????????? | | ?????????????????????????????????????????????????? | | ?????????????????????????????????????????????????? | | ?????????????????????????????????????????????????? | | ?????????????????????????????????????????????????? | | ?????????????????????????????????????????????????? | +----------------------------------------------------+ Best States ------------- Heat Dissipation 28 Energy Generation 10 Energy Capacity 250 Matter Stores 300 Matter Capacity 300 Sight Range 16 Robot Scan Range 20 Terrain Scan Range 14 Terrain Scan Density 10 Evasion (%) 44 Item Schematics ----------------- None Robot Schematics ------------------ None Fabricated ------------ Nothing Repaired ---------- Nothing Studied --------- None Alien Tech Used ----------------- None Achievements -------------- None Challenges ------------ None Game ------ Seed PointArmoredMaul Manual? 0 Play Time 00:26:31 Cumulative 22.0 hours Start 2026.03.08 @ 14:18:49 End 2026.03.08 @ 14:46:33 Sessions 1 Manual Loads 0 Difficulty Rogue Special Mode None Game No. 22 Rogue 18 Adventurer 4 Explorer 0 Win Type - Total 0 Types 0/0/0/0/0/0/0/0/0/0 Lore% 10 Gallery% 16 Achievement% 17 Wizard Run 0 Options --------- Layout 0 ASCII 0 Keyboard 1 Movement Arrows Keybinds 0 Fullscreen 2 Font 32/CogWide Map View 78x50 Zoom Use 0% Tactical HUD 1 Map Filters NONE Filters NONE Steam 1 RUN: c30e3ca5-a4b0-42ed-ba80-ca042337ae03